bitfinex/quotes_SOLUSD_20250420
["timestamp","ask_amount","ask_price","bid_price","bid_amount"]
[1745179330337,0.03,136.83,136.82,11.04299026]
[1745179331045,0.03,136.83,136.82,29.69263912]
[1745179331549,0.03,136.83,136.82,18.64964886]
[1745179331728,0.03,136.83,136.82,29.69263912]
[1745179332549,0.03,136.83,136.82,55.69263912]
[1745179332721,0.03,136.83,136.82,29.69263912]
[1745179347757,0.03,136.83,136.82,11.04299026]
[1745179349363,0.03,136.83,136.82,261.30299026]
[1745179354263,0.03,136.83,136.82,275.68299026]
[1745179356363,11.07299026,136.83,136.82,264.64]
[1745179356547,12.68879026,136.83,136.82,264.64]
[1745179362974,31.33843912,136.83,136.82,264.64]
[1745179363355,6.0056,136.81,136.76,250.32]
[1745179363551,6.0056,136.81,136.77,14.38]
[1745179364858,11.04299026,136.78,136.77,14.38]
[1745179371887,6.0056,136.81,136.77,14.38]
[1745179372066,91.84299026,136.82,136.77,25.42299026]
[1745179372376,11.07299026,136.83,136.78,11.04299026]
[1745179373371,11.07299026,136.83,136.78,37.04299026]
[1745179377975,11.04299026,136.81,136.8,26.0]
[1745179378900,11.04299026,136.82,136.8,26.0]
[1745179379399,11.04299026,136.82,136.81,14.38]
[1745179382801,11.07299026,136.83,136.81,14.38]
[1745179383501,11.04299026,136.82,136.81,14.38]
[1745179384297,0.03,136.83,136.81,14.38]
[1745179384678,0.03,136.83,136.81,25.42299026]
[1745179385578,0.03,136.83,136.82,11.04299026]
[1745179385984,0.03,136.83,136.81,25.42299026]
[1745179387703,11.07299026,136.86,136.81,25.42299026]
[1745179390210,11.07299026,136.86,136.82,250.34]
[1745179391313,0.03,136.86,136.82,250.34]
[1745179391513,11.07299026,136.86,136.82,250.34]
[1745179397331,11.04299026,136.85,136.82,250.34]
[1745179397555,11.04299026,136.83,136.82,250.34]
[1745179401225,11.04299026,136.84,136.82,250.34]
[1745179401433,11.04299026,136.85,136.82,250.34]
[1745179406148,11.04299026,136.84,136.82,250.34]
[1745179408046,11.04299026,136.83,136.82,250.34]
[1745179408228,0.03,136.86,136.82,250.34]
[1745179408229,11.04299026,136.84,136.82,250.34]
[1745179408629,11.04299026,136.85,136.82,250.34]
[1745179411259,0.03,136.86,136.82,250.34]
[1745179411436,11.04299026,136.85,136.82,250.34]
[1745179412443,11.04299026,136.84,136.82,250.34]
[1745179412623,11.04299026,136.83,136.82,250.34]
[1745179419953,11.04299026,136.83,136.81,14.38]
[1745179420530,0.03,136.86,136.81,14.38]
[1745179420531,11.04299026,136.82,136.81,14.38]
[1745179421843,11.04299026,136.84,136.81,14.38]
[1745179422031,11.04299026,136.83,136.81,14.38]
[1745179422355,11.04299026,136.82,136.81,14.38]
[1745179427628,18.67964886,136.86,136.81,14.38]
[1745179427829,11.04299026,136.84,136.81,14.38]
[1745179428035,0.03,136.86,136.81,14.38]
[1745179428235,11.04299026,136.84,136.81,14.38]
[1745179429759,0.03,136.86,136.81,14.38]
[1745179429968,0.03,136.86,136.82,26.0]
[1745179430261,11.07299026,136.86,136.82,26.0]
[1745179431059,0.03,136.86,136.83,11.04299026]
[1745179431263,0.03,136.86,136.85,26.0]
[1745179432065,0.03,136.86,136.84,26.0]
[1745179432252,0.03,136.86,136.85,37.04299026]
[1745179432648,0.03,136.86,136.85,26.0]
[1745179433158,0.03,136.86,136.84,11.04299026]
[1745179433465,0.03,136.86,136.85,11.04299026]
[1745179434755,0.03,136.86,136.84,26.0]
[1745179434962,0.03,136.86,136.84,37.04299026]
[1745179435165,0.03,136.86,136.84,26.0]
[1745179435546,0.03,136.86,136.85,37.04299026]
[1745179436950,0.03,136.86,136.85,26.0]
[1745179438967,0.03,136.86,136.85,37.04299026]
[1745179439167,0.03,136.86,136.85,11.04299026]
[1745179440264,0.03,136.86,136.85,17.11279026]
[1745179444478,0.03,136.86,136.85,43.11279026]
[1745179444772,0.03,136.86,136.85,17.11279026]
[1745179447872,0.03,136.86,136.85,267.35279026]
[1745179451976,0.03,136.91,136.88,26.0]
[1745179452289,0.03,136.91,136.9,11.04299026]
[1745179452656,0.03,136.95,136.92,26.0]
[1745179452868,0.03,136.95,136.92,37.04299026]
[1745179453276,0.03,136.95,136.92,26.0]
[1745179453776,0.03,136.95,136.92,37.04299026]
[1745179454653,0.03,136.95,136.92,40.60771172]
[1745179456482,0.03,136.95,136.92,29.56472146]
[1745179456778,0.03,136.95,136.92,40.60771172]
[1745179460970,0.03,136.95,136.92,29.56472146]
[1745179461169,0.03,136.95,136.92,40.60771172]
[1745179462389,0.03,136.95,136.92,29.56472146]
[1745179463687,0.03,136.95,136.92,40.60771172]
[1745179464191,0.03,136.95,136.92,290.70771172]
[1745179466073,0.03,136.95,136.92,276.1]
[1745179466382,11.07299026,136.93,136.92,250.1]
[1745179466574,11.07299026,136.93,136.92,264.48]
[1745179468185,0.03,136.93,136.92,264.48]
[1745179468392,11.07299026,136.93,136.92,264.48]
[1745179468772,0.03,136.93,136.92,264.48]
[1745179472675,0.03,136.93,136.92,275.52299026]
[1745179475993,0.03,136.93,136.92,264.48]
[1745179476310,0.03,136.93,136.92,275.52299026]
[1745179491715,0.03,136.93,136.92,264.48]
[1745179491889,0.03,136.93,136.92,275.52299026]
[1745179494999,8.66299026,136.99,136.95,26.0]
[1745179495198,11.04299026,136.98,136.95,26.0]
[1745179497623,11.04299026,136.98,136.96,14.62]
[1745179500141,83.2808192,137.02,136.96,14.62]
[1745179500425,12.59539026,137.01,136.96,14.62]
[1745179500726,17.39679026,137.0,136.96,14.62]
[1745179501626,11.04299026,136.99,136.96,14.62]
[1745179502108,17.39679026,137.0,136.96,14.62]
[1745179505095,6.3538,137.0,136.96,14.62]
[1745179505312,17.39679026,137.0,136.96,14.62]
[1745179505513,6.3538,137.0,136.96,14.62]
[1745179505713,17.39679026,137.0,136.96,14.62]
[1745179505915,6.3538,137.0,136.96,14.62]
[1745179506325,17.39679026,137.0,136.96,14.62]
[1745179507511,11.04299026,136.98,136.96,14.62]
[1745179507915,11.04299026,136.99,136.96,14.62]
[1745179509234,6.3538,137.0,136.96,14.62]
[1745179510122,17.39679026,137.0,136.96,14.62]
[1745179510326,2.4808192,137.02,136.99,11.04299026]
[1745179510631,2.4808192,137.02,137.0,11.04299026]
[1745179510838,2.4808192,137.02,137.01,14.62]
[1745179513216,2.4808192,137.02,137.01,25.66299026]
[1745179513417,2.4808192,137.02,137.01,14.62]
[1745179519452,2.4808192,137.02,137.01,264.62]
[1745179521245,2.4808192,137.02,137.01,275.66299026]
[1745179521439,0.03,137.06,137.03,26.0]
[1745179521642,0.03,137.07,137.06,43.29729026]
[1745179521845,0.03,137.08,137.06,31.91729026]
[1745179522156,0.03,137.12,137.11,11.04299026]
[1745179522456,0.03,137.12,137.11,25.66299026]
[1745179522829,11.44714696,137.2,137.11,29.29872483]
[1745179523139,11.44714696,137.2,137.15,26.0]
[1745179523342,11.44714696,137.2,137.16,14.62]
[1745179524623,7.5318,137.23,137.16,14.62]
[1745179524829,16.97352973,137.22,137.16,31.59352973]
[1745179525063,16.97352973,137.2,137.16,14.62]
[1745179525254,7.5318,137.23,137.16,14.62]
[1745179525558,16.97352973,137.2,137.16,14.62]
[1745179525766,7.5318,137.23,137.16,31.59352973]
[1745179526056,16.97352973,137.24,137.19,16.97352973]
[1745179526434,114.8792,137.27,137.19,16.97352973]
[1745179526639,16.97352973,137.24,137.19,16.97352973]
[1745179527244,16.97352973,137.23,137.18,16.97352973]
[1745179527442,18.64964886,137.26,137.17,16.97352973]
[1745179527662,16.97352973,137.23,137.17,16.97352973]
[1745179527855,16.97352973,137.22,137.17,16.97352973]
[1745179528062,16.97352973,137.2,137.16,95.32]
[1745179528240,18.64964886,137.26,137.16,31.59352973]
[1745179528658,16.97352973,137.21,137.16,31.59352973]
[1745179529162,16.97352973,137.21,137.16,14.62]
[1745179529362,16.97352973,137.21,137.16,31.59352973]
[1745179530163,18.64964886,137.26,137.16,31.59352973]
[1745179530658,18.64964886,137.26,137.16,14.62]
[1745179530853,2.4808192,137.29,137.19,42.97352973]
[1745179531057,16.97352973,137.24,137.19,42.97352973]
[1745179531253,16.97352973,137.23,137.19,26.0]
[1745179531455,16.97352973,137.22,137.19,26.0]
[1745179531966,16.97352973,137.21,137.19,26.0]
[1745179532143,16.97352973,137.22,137.19,26.0]
[1745179532340,16.97352973,137.22,137.13,18.64964886]
[1745179532341,16.97352973,137.2,137.13,18.64964886]
[1745179532657,16.97352973,137.19,137.16,26.0]
[1745179532841,16.97352973,137.2,137.16,26.0]
[1745179533042,16.97352973,137.2,137.18,26.0]
[1745179533256,7.7176,137.22,137.19,15.06]
[1745179533454,16.97352973,137.21,137.19,15.06]
[1745179533657,16.97352973,137.22,137.19,15.06]
[1745179533851,7.7176,137.26,137.19,15.06]
[1745179534058,16.97352973,137.23,137.19,15.06]
[1745179534369,0.03,137.28,137.22,16.97352973]
[1745179534581,0.03,137.28,137.23,249.74]
[1745179534747,0.03,137.28,137.25,16.97352973]
[1745179535064,0.03,137.28,137.24,32.03352973]
[1745179535269,0.03,137.28,137.24,15.06]
[1745179535958,16.97352973,137.25,137.23,249.74]
[1745179536166,16.97352973,137.24,137.23,249.74]
[1745179536346,17.00352973,137.28,137.23,264.8]
[1745179536659,0.03,137.28,137.23,290.8]
[1745179537143,17.00352973,137.28,137.23,307.77352973]
[1745179537758,0.03,137.28,137.23,307.77352973]
[1745179537960,17.00352973,137.28,137.23,307.77352973]
[1745179538147,17.00352973,137.28,137.27,42.97352973]
[1745179538148,0.03,137.28,137.27,42.97352973]
[1745179538352,0.03,137.28,137.27,16.97352973]
[1745179538559,2.4808192,137.29,137.28,18.64964886]
[1745179538865,2.4808192,137.29,137.28,50.68317859]
[1745179539066,2.4808192,137.29,137.28,44.64964886]
[1745179539267,2.4808192,137.29,137.26,26.0]
[1745179539443,2.4808192,137.29,137.28,15.06]
[1745179539955,2.4808192,137.29,137.28,50.68317859]
[1745179540152,2.4808192,137.29,137.28,32.03352973]
[1745179540355,19.45434893,137.29,137.28,15.72]
[1745179540757,2.4808192,137.29,137.28,15.72]
[1745179541155,2.4808192,137.29,137.28,32.69352973]
[1745179541442,2.4808192,137.29,137.28,67.57427457]
[1745179541968,2.4808192,137.29,137.28,94.67170028]
[1745179542368,0.8142192,137.29,137.28,94.67170028]
[1745179542567,0.8142192,137.29,137.28,132.55427457]
[1745179542767,0.8142192,137.29,137.28,159.65170028]
[1745179542971,0.8142192,137.29,137.28,175.37170028]
[1745179543171,0.03,137.36,137.29,19.58544886]
[1745179543375,0.03,137.36,137.29,18.64964886]
[1745179543576,27.12742571,137.36,137.3,15.72]
[1745179543747,27.09742571,137.32,137.31,15.72]
[1745179543953,1.649,137.34,137.26,18.64964886]
[1745179544172,27.09742571,137.32,137.28,26.0]
[1745179544378,4.312114,137.34,137.29,15.72]
[1745179544574,4.312114,137.34,137.29,42.81742571]
[1745179544755,2.663114,137.34,137.3,27.09742571]
[1745179545065,2.663114,137.34,137.31,27.09742571]
[1745179545270,2.663114,137.34,137.3,27.09742571]
[1745179545450,2.663114,137.34,137.33,53.09742571]
[1745179546859,2.663114,137.34,137.32,27.09742571]
[1745179547066,2.663114,137.34,137.33,53.09742571]
[1745179547264,2.663114,137.34,137.33,26.0]
[1745179547559,2.663114,137.34,137.33,53.09742571]
[1745179547749,2.663114,137.34,137.33,71.74707457]
[1745179547953,2.663114,137.34,137.33,152.44707457]
[1745179548174,2.663114,137.34,137.33,125.34964886]
[1745179548372,2.663114,137.34,137.33,152.44707457]
[1745179550159,2.663114,137.34,137.33,26.0]
[1745179550379,2.663114,137.34,137.31,27.09742571]
[1745179550557,2.663114,137.34,137.32,16.38]
[1745179550759,27.09742571,137.33,137.25,6.0933]
[1745179550971,27.09742571,137.3,137.26,265.8]
[1745179551157,2.663114,137.34,137.26,265.8]
[1745179551158,27.09742571,137.29,137.26,265.8]
[1745179551477,27.09742571,137.27,137.26,265.8]
[1745179551862,27.09742571,137.29,137.26,265.8]
[1745179552061,27.09742571,137.28,137.26,265.8]
[1745179552275,27.09742571,137.27,137.26,265.8]
[1745179552962,18.64964886,137.33,137.26,265.8]
[1745179553361,2.663114,137.34,137.26,265.8]
[1745179553562,27.09742571,137.29,137.26,265.8]
[1745179554291,27.09742571,137.27,137.26,265.8]
[1745179554681,27.09742571,137.29,137.26,265.8]
[1745179554985,1.5621,137.33,137.26,265.8]
[1745179555209,2.663114,137.34,137.3,27.09742571]
[1745179555479,2.663114,137.34,137.31,16.4]
[1745179556374,27.09742571,137.32,137.31,16.4]
[1745179556879,29.76053971,137.34,137.31,16.4]
[1745179557065,2.663114,137.34,137.31,16.4]
[1745179557578,2.663114,137.34,137.32,27.09742571]
[1745179558276,2.663114,137.34,137.31,69.49742571]
[1745179560486,2.663114,137.34,137.31,42.4]
[1745179560785,29.76053971,137.34,137.31,42.4]
[1745179560987,2.663114,137.34,137.31,42.4]
[1745179561569,27.09742571,137.32,137.31,16.4]
[1745179561888,2.663114,137.34,137.31,16.4]
[1745179563083,2.663114,137.34,137.31,43.49742571]
[1745179563389,2.663114,137.34,137.31,16.4]
[1745179563988,2.663114,137.34,137.31,43.49742571]
[1745179564191,2.663114,137.34,137.31,16.4]
[1745179565771,2.663114,137.34,137.31,43.49742571]
[1745179566094,2.663114,137.34,137.33,27.09742571]
[1745179567697,2.663114,137.34,137.31,16.4]
[1745179568074,2.663114,137.34,137.31,43.49742571]
[1745179568380,2.663114,137.34,137.32,249.4]
[1745179568568,2.663114,137.34,137.32,275.4]
[1745179569597,2.663114,137.34,137.33,53.09742571]
[1745179569769,2.663114,137.34,137.33,26.0]
[1745179570270,2.663114,137.34,137.32,249.4]
[1745179570699,29.76053971,137.34,137.33,16.38]
[1745179571078,29.76053971,137.34,137.32,249.4]
[1745179571285,2.663114,137.34,137.33,16.38]
[1745179576384,2.663114,137.34,137.33,62.12707457]
[1745179579010,2.663114,137.34,137.33,43.47742571]
[1745179579619,2.663114,137.34,137.33,62.12707457]
[1745179581898,2.663114,137.34,137.33,43.47742571]
[1745179584121,2.663114,137.34,137.33,62.12707457]
[1745179586531,2.663114,137.34,137.33,35.02964886]
[1745179586733,2.663114,137.34,137.33,16.38]
[1745179587207,29.76053971,137.34,137.33,16.9]
[1745179588011,2.663114,137.34,137.33,43.99742571]
[1745179588219,0.03,137.36,137.33,43.99742571]
[1745179588421,0.03,137.36,137.35,27.09742571]
[1745179590526,0.03,137.36,137.35,26.0]
[1745179590743,0.03,137.36,137.35,53.09742571]
[1745179591237,0.03,137.36,137.35,26.0]
[1745179592040,0.03,137.36,137.35,275.32]
[1745179592326,0.03,137.36,137.35,249.32]
[1745179594619,27.12742571,137.36,137.35,249.32]
[1745179595825,0.03,137.36,137.35,249.32]
[1745179596021,27.12742571,137.36,137.35,249.32]
[1745179596918,0.03,137.36,137.35,249.32]
[1745179597119,27.12742571,137.36,137.35,249.32]
[1745179600722,27.12742571,137.36,137.35,266.22]
[1745179600913,28.69382571,137.36,137.35,266.22]
[1745179601309,55.79125142,137.36,137.35,266.22]
[1745179601618,62.04585142,137.36,137.35,266.22]
[1745179602019,1.5964,137.36,137.35,266.22]
[1745179602324,28.69382571,137.36,137.35,266.22]
[1745179605510,55.79125142,137.36,137.35,266.22]
[1745179607535,74.44090028,137.36,137.32,0.7281896]
[1745179607829,27.09742571,137.33,137.3,0.72831215]
[1745179608030,6.0598,137.34,137.31,16.7]
[1745179609031,27.09742571,137.32,137.31,17.42826781]
[1745179610253,27.09742571,137.32,137.31,16.7]
[1745179612045,6.0598,137.34,137.31,17.42827907]
[1745179612346,1.5964,137.36,137.33,27.09742571]
[1745179612637,0.03,137.36,137.33,27.09742571]
[1745179612824,0.03,137.36,137.32,27.09742571]
[1745179613132,0.03,137.36,137.31,46.34640247]
[1745179613337,0.03,137.36,137.33,2.54860554]
[1745179614334,27.12742571,137.36,137.33,2.54860554]
[1745179615648,0.03,137.36,137.33,2.54860554]
[1745179615939,1.617,137.4,137.34,27.09742571]
[1745179616119,27.09742571,137.39,137.34,27.09742571]
[1745179616326,27.09742571,137.38,137.33,33.28689631]
[1745179617344,27.09742571,137.39,137.34,27.09742571]
[1745179618251,27.09742571,137.39,137.33,6.1894706]
[1745179618435,27.09742571,137.38,137.33,33.28689631]
[1745179618634,27.09742571,137.39,137.34,27.09742571]
[1745179619338,27.09742571,137.39,137.35,2.54823443]
[1745179619539,27.09742571,137.39,137.36,16.7]
[1745179620041,27.09742571,137.38,137.36,16.7]
[1745179620236,27.09742571,137.39,137.36,16.7]
[1745179620754,1.617,137.4,137.36,16.7]
[1745179620755,27.09742571,137.37,137.36,16.7]
[1745179621326,27.09742571,137.37,137.36,17.42801397]
[1745179621524,27.09742571,137.37,137.36,16.7]
[1745179621939,52.32957457,137.37,137.36,16.7]
[1745179622349,79.42700028,137.37,137.36,16.7]
[1745179622737,52.32957457,137.37,137.36,16.7]
[1745179623863,27.09742571,137.38,137.36,17.42801397]
[1745179624149,27.09742571,137.37,137.36,17.42801397]
[1745179624836,80.8,137.39,137.36,17.42801397]
[1745179625053,27.09742571,137.37,137.36,17.42801397]
[1745179626359,80.8,137.39,137.36,17.42801397]
[1745179626857,1.617,137.4,137.36,19.24804891]
[1745179627266,27.09742571,137.39,137.36,19.24804891]
[1745179627565,27.09742571,137.38,137.36,19.24804891]
[1745179629035,27.09742571,137.39,137.36,19.24804891]
[1745179629437,27.09742571,137.38,137.36,19.24804891]
[1745179630944,27.09742571,137.37,137.36,17.42801397]
[1745179631858,27.09742571,137.38,137.36,17.42801397]
[1745179632167,27.09742571,137.37,137.36,17.42801397]
[1745179634846,27.09742571,137.37,137.36,16.7]
[1745179635566,45.74707457,137.37,137.36,16.7]
[1745179635749,27.09742571,137.37,137.36,16.7]
[1745179641379,16.93634198,137.37,137.36,16.7]
[1745179649687,80.8,137.39,137.36,16.7]
[1745179650164,80.8,137.39,137.36,33.63634198]
[1745179650361,0.03,137.4,137.36,33.63634198]
[1745179650563,16.93634198,137.39,137.36,16.7]
[1745179651067,0.03,137.4,137.36,16.7]
[1745179651259,0.03,137.4,137.38,16.93634198]
[1745179651465,0.03,137.4,137.36,16.7]
[1745179651665,0.03,137.4,137.38,16.93634198]
[1745179653657,0.03,137.4,137.37,16.93634198]
[1745179654985,16.96634198,137.4,137.36,16.7]
[1745179655156,16.93634198,137.39,137.36,16.7]
[1745179656382,16.96634198,137.4,137.36,16.7]
[1745179657282,16.93634198,137.39,137.36,16.7]
[1745179657780,16.93634198,137.38,137.36,16.7]
[1745179658357,16.93634198,137.37,137.36,16.7]
[1745179660059,16.93634198,137.37,137.32,16.93634198]
[1745179660264,16.93634198,137.33,137.31,249.4]
[1745179660472,16.93634198,137.33,137.32,16.46]
[1745179662077,16.93634198,137.35,137.32,16.46]
[1745179662574,16.93634198,137.37,137.32,33.39634198]
[1745179663160,16.93634198,137.36,137.32,16.46]
[1745179663970,16.93634198,137.35,137.32,16.46]
[1745179664380,16.93634198,137.34,137.32,16.46]
[1745179664682,16.93634198,137.35,137.32,16.46]
[1745179665065,80.8,137.39,137.32,16.46]
[1745179665380,16.93634198,137.37,137.32,33.39634198]
[1745179665681,80.8,137.39,137.34,16.93634198]
[1745179665884,97.73634198,137.39,137.34,16.93634198]
[1745179666092,0.03,137.4,137.36,16.93634198]
[1745179666276,0.03,137.4,137.37,16.46]
[1745179667785,0.03,137.4,137.38,16.93634198]
[1745179669083,0.03,137.4,137.39,16.93634198]
[1745179670782,0.03,137.4,137.37,16.46]
[1745179670965,0.03,137.4,137.39,16.93634198]
[1745179671689,0.03,137.4,137.38,16.93634198]
[1745179672474,0.03,137.4,137.37,33.39634198]
[1745179672873,0.03,137.4,137.38,16.93634198]
[1745179675092,0.03,137.4,137.38,266.23634198]
[1745179675486,0.03,137.4,137.38,249.3]
[1745179675787,0.03,137.4,137.38,266.23634198]
[1745179676889,0.03,137.4,137.39,16.93634198]
[1745179677697,0.03,137.4,137.38,266.23634198]
[1745179680400,0.03,137.42,137.39,16.93634198]
[1745179681302,0.03,137.42,137.4,16.93634198]
[1745179683702,0.03,137.42,137.38,275.3]
[1745179684005,0.03,137.42,137.39,16.93634198]
[1745179684509,0.03,137.42,137.4,16.93634198]
[1745179685396,0.03,137.42,137.39,16.93634198]
[1745179687008,0.03,137.42,137.4,16.4]
[1745179687211,16.93634198,137.41,137.4,16.4]
[1745179688306,0.03,137.42,137.4,16.4]
[1745179690610,0.03,137.42,137.4,27.22592239]
[1745179690911,0.03,137.42,137.4,16.4]
[1745179691906,0.03,137.42,137.4,265.66]
[1745179692296,10.85592239,137.42,137.4,265.66]
[1745179692699,0.03,137.42,137.4,265.66]
[1745179694922,10.82592239,137.41,137.4,265.66]
[1745179695594,10.85592239,137.42,137.4,265.66]
[1745179696519,0.03,137.42,137.4,265.66]
[1745179696920,10.85592239,137.42,137.4,265.66]
[1745179702511,0.03,137.42,137.4,265.66]
[1745179702815,10.85592239,137.42,137.4,265.66]
[1745179702993,0.03,137.42,137.4,265.66]
[1745179703195,10.82592239,137.41,137.4,265.66]
[1745179703394,12.46172239,137.41,137.4,265.66]
[1745179704603,1.6358,137.41,137.4,265.66]
[1745179704907,12.46172239,137.41,137.4,265.66]
[1745179706201,12.46172239,137.41,137.4,16.4]
[1745179716012,10.82592239,137.41,137.4,16.4]
[1745179717427,0.03,137.42,137.4,16.4]
[1745179718002,10.85592239,137.42,137.4,16.4]
[1745179720714,10.82592239,137.41,137.4,16.4]
[1745179727425,0.03,137.42,137.4,16.4]
[1745179727623,10.82592239,137.41,137.4,16.4]
[1745179736534,0.03,137.42,137.4,16.4]
[1745179736731,0.03,137.42,137.4,27.22592239]
[1745179736932,0.03,137.42,137.41,10.82592239]
[1745179737135,0.03,137.42,137.4,16.4]
[1745179737317,0.03,137.42,137.41,10.82592239]
[1745179740737,0.03,137.42,137.4,27.22592239]
[1745179740924,10.82592239,137.41,137.4,16.4]
[1745179748241,0.03,137.42,137.4,16.4]
[1745179751354,0.03,137.42,137.4,27.22592239]
[1745179751565,0.03,137.42,137.4,16.4]
[1745179752537,0.03,137.42,137.4,27.22592239]
[1745179753551,0.03,137.42,137.41,10.82592239]
[1745179754548,0.03,137.42,137.4,27.22592239]
[1745179755263,0.03,137.42,137.41,10.82592239]
[1745179755443,0.03,137.45,137.41,10.82592239]
[1745179755640,0.03,137.45,137.43,10.82592239]
[1745179756160,0.03,137.45,137.42,10.82592239]
[1745179757668,0.03,137.45,137.4,24.5103]
[1745179758051,0.03,137.45,137.42,10.82592239]
[1745179758965,0.03,137.46,137.42,10.82592239]
[1745179759146,0.03,137.46,137.45,10.82592239]
[1745179759348,0.03,137.46,137.45,26.42592239]
[1745179760154,0.03,137.47,137.46,10.82592239]
[1745179760764,0.03,137.47,137.45,26.42592239]
[1745179762081,0.03,137.47,137.45,15.6]
[1745179764146,0.03,137.47,137.45,26.42592239]
[1745179764867,0.03,137.47,137.45,15.6]
[1745179765245,10.82592239,137.5,137.46,10.82592239]
[1745179765471,10.85592239,137.51,137.46,10.82592239]
[1745179766959,10.82592239,137.5,137.45,26.42592239]
[1745179770273,10.82592239,137.5,137.45,275.60592239]
[1745179771578,0.03,137.51,137.47,10.82592239]
[1745179771881,0.03,137.51,137.5,10.82592239]
[1745179772178,1e-08,137.51,137.5,26.22592239]
[1745179772758,1e-08,137.51,137.5,15.4]
[1745179773280,1e-08,137.51,137.5,26.22592239]
[1745179784587,1e-08,137.51,137.5,15.4]
[1745179784885,1e-08,137.51,137.5,26.22592239]
[1745179785087,1e-08,137.51,137.5,15.4]
[1745179785384,1e-08,137.51,137.5,26.22592239]
[1745179786199,1e-08,137.51,137.5,15.4]
[1745179786365,1e-08,137.51,137.5,26.22592239]
[1745179786566,1e-08,137.51,137.5,264.5]
[1745179787071,1e-08,137.51,137.5,275.32592239]
[1745179789461,1e-08,137.51,137.5,264.5]
[1745179790061,1e-08,137.51,137.5,275.32592239]
[1745179792484,1e-08,137.51,137.5,264.5]
[1745179792662,1e-08,137.51,137.5,275.32592239]
[1745179793180,1e-08,137.51,137.5,264.5]
[1745179793487,1e-08,137.51,137.5,275.32592239]
[1745179795982,1e-08,137.51,137.5,264.5]
[1745179796287,1e-08,137.51,137.5,275.32592239]
[1745179802871,1e-08,137.51,137.5,264.5]
[1745179803579,1e-08,137.51,137.5,275.32592239]
[1745179804383,1e-08,137.51,137.5,264.5]
[1745179804993,1e-08,137.51,137.5,275.32592239]
[1745179805599,1e-08,137.51,137.5,264.5]
[1745179805777,10.8259224,137.51,137.5,264.22]
[1745179806090,1e-08,137.51,137.5,264.22]
[1745179807703,10.8259224,137.51,137.5,264.22]
[1745179811307,1e-08,137.51,137.5,264.22]
[1745179811515,10.8259224,137.51,137.5,264.22]
[1745179818194,18.64964886,137.5,137.44,0.063]
[1745179818390,18.64964886,137.5,137.45,15.12]
[1745179819415,25.92248795,137.5,137.45,15.12]
[1745179819618,10.82592239,137.46,137.45,15.12]
[1745179823595,29.47557125,137.46,137.45,15.12]
[1745179825012,42.81371484,137.46,137.45,15.12]
[1745179825206,86.1174044,137.46,137.44,0.063]
[1745179825451,61.40498481,137.45,137.44,0.063]
[1745179826823,80.05463367,137.45,137.43,15.04]
[1745179827021,54.12961195,137.44,137.43,15.04]
[1745179827518,101.08504886,137.43,137.41,15.04]
[1745179827721,18.64964886,137.4,137.38,15.04]
[1745179828017,18.64964886,137.38,137.37,15.04]
[1745179828222,29.47557125,137.38,137.37,15.04]
[1745179828600,99.44964886,137.37,137.34,0.063]
[1745179828819,153.57926081,137.37,137.34,0.063]
[1745179829111,10.82592239,137.35,137.34,0.063]
[1745179829318,18.64964886,137.34,137.3,0.063]
[1745179829500,10.82592239,137.31,137.3,0.063]
[1745179831321,29.47557125,137.31,137.3,0.063]
[1745179832290,29.47557125,137.31,137.27,0.063]
[1745179832291,26.0,137.28,137.27,0.063]